bitfinex-derivatives/quotes_ETHF0:USTF0_20260315
["timestamp","ask_amount","ask_price","bid_price","bid_amount"]
[1773616203532,26.61838067,2195.9,2195.1,0.22772]
[1773616203835,0.00527275,2196.2,2195.1,34.10305613]
[1773616204031,25.98165342,2196.2,2195.4,33.87533613]
[1773616204232,25.98165342,2196.2,2195.3,6.69927826]
[1773616204432,25.98165342,2196.2,2194.6,8.68225774]
[1773616204733,31.17938067,2196.0,2193.9,27.17605787]
[1773616204938,26.61838067,2196.0,2193.9,27.17605787]
[1773616205140,26.61838067,2195.8,2193.9,27.17605787]
[1773616205340,26.61838067,2195.8,2194.2,27.40386787]
[1773616205534,26.62283359,2195.8,2194.2,0.23166666]
[1773616206136,26.62283359,2195.8,2194.2,27.40772453]
[1773616206339,26.61838067,2195.6,2194.2,27.40772453]
[1773616206539,26.61838067,2195.6,2194.3,20.628]
[1773616206735,26.61838067,2195.6,2194.4,27.17605787]
[1773616206936,26.61838067,2195.6,2194.6,27.17605787]
[1773616207137,26.62283359,2195.8,2194.8,27.17605787]
[1773616207834,26.62283359,2195.8,2194.9,20.612]
[1773616208038,26.62283359,2195.8,2194.9,20.611]
[1773616208239,0.22471378,2196.9,2194.9,20.611]
[1773616208240,26.61838067,2197.3,2195.8,27.17605787]
[1773616208440,26.61838067,2197.3,2195.9,20.606]
[1773616208631,26.61838067,2197.3,2195.9,47.78205787]
[1773616208835,26.61838067,2197.3,2196.0,20.603]
[1773616209036,26.61838067,2197.3,2196.0,47.77905787]
[1773616209241,26.62199928,2197.3,2196.0,0.00570427]
[1773616209742,26.62199928,2197.3,2196.0,27.18176214]
[1773616209934,26.61838067,2197.1,2196.0,27.18176214]
[1773616211640,0.00361861,2197.3,2196.2,27.17605787]
[1773616211842,0.00361861,2197.3,2196.4,27.17605787]
[1773616212037,0.00361861,2197.3,2196.5,5.36424737]
[1773616212235,0.00361861,2197.3,2196.8,27.17605787]
[1773616212438,26.62199928,2197.3,2196.5,27.17605787]
[1773616212655,26.62199928,2197.3,2196.5,47.74405787]
[1773616212843,26.61838067,2198.4,2196.6,27.17605787]
[1773616213048,26.61838067,2197.6,2196.6,27.17605787]
[1773616213341,26.61838067,2197.6,2196.7,27.17605787]
[1773616213542,0.00361861,2197.5,2196.8,20.56]
[1773616213734,0.00777749,2197.5,2196.8,20.56]
[1773616214340,0.00777749,2197.5,2196.9,25.8789793]
[1773616214539,26.62615816,2197.5,2197.0,5.3269793]
[1773616214847,26.62615816,2197.5,2196.8,20.551]
[1773616215046,26.62615816,2197.5,2196.9,5.32703165]
[1773616215245,26.62615816,2197.5,2196.8,20.551]
[1773616215442,26.62615816,2197.5,2196.9,5.32341115]
[1773616215637,26.62615816,2197.5,2196.6,27.40360787]
[1773616215839,26.62253955,2197.5,2196.6,27.40360787]
[1773616216546,26.62253955,2197.5,2196.7,20.536]
[1773616216844,26.61838067,2197.8,2197.0,27.17605787]
[1773616217843,26.62289652,2197.8,2197.0,27.17605787]
[1773616218647,0.00451585,2197.8,2197.1,27.40356787]
[1773616218948,26.61838067,2199.0,2197.5,27.17605787]
[1773616219143,26.61838067,2198.9,2197.8,27.40349787]
[1773616219351,26.61838067,2198.9,2197.9,20.518]
[1773616219547,26.61838067,2198.9,2198.0,20.516]
[1773616219740,26.62245807,2198.9,2198.0,20.516]
[1773616219947,26.62245807,2198.9,2198.0,20.51994661]
[1773616220654,26.62245807,2198.9,2198.0,47.69600448]
[1773616221046,26.62245807,2198.9,2198.1,20.507]
[1773616221549,26.62245807,2198.9,2198.2,27.17605787]
[1773616221948,26.61838067,2199.2,2198.3,27.40344787]
[1773616222547,27.92025019,2199.8,2198.5,28.47866704]
[1773616222850,27.92516329,2199.8,2198.9,28.47866704]
[1773616223052,27.92516329,2199.8,2198.8,0.22733]
[1773616223247,27.92516329,2199.8,2199.0,20.495]
[1773616223447,27.92516329,2199.8,2199.1,20.494]
[1773616224049,27.92516329,2199.8,2198.7,28.47866704]
[1773616224345,27.92516329,2199.8,2198.8,20.488]
[1773616224741,27.92516329,2199.8,2198.3,28.47866704]
[1773616224946,27.92516329,2199.8,2198.7,28.47866704]
[1773616225348,27.92516329,2199.8,2198.8,20.482]
[1773616225549,27.92516329,2199.8,2198.9,28.47866704]
[1773616225752,27.92516329,2199.8,2199.0,20.479]
[1773616225952,27.92516329,2199.8,2198.9,20.476]
[1773616226152,27.92516329,2199.8,2198.9,48.95466704]
[1773616226646,27.92516329,2199.8,2199.0,28.47866704]
[1773616226853,27.92516329,2199.8,2198.5,28.47866704]
[1773616227154,0.0049131,2199.8,2199.1,28.47866704]
[1773616227354,0.0049131,2199.8,2199.3,28.47866704]
[1773616227550,27.92025019,2200.1,2199.3,28.47866704]
[1773616228552,27.92025019,2200.1,2199.7,28.47866704]
[1773616228553,0.00450619,2200.1,2199.7,28.47866704]
[1773616228854,0.00450619,2200.1,2199.8,48.93866704]
[1773616229050,27.92025019,2200.6,2199.8,48.93866704]
[1773616229453,27.92025019,2200.6,2199.9,28.47866704]
[1773616229751,27.92025019,2201.0,2200.1,28.47866704]
[1773616229946,27.92460982,2201.0,2200.1,28.47866704]
[1773616230148,27.92460982,2201.0,2200.2,48.92966704]
[1773616231154,27.92460982,2201.0,2200.2,28.47866704]
[1773616231456,27.92460982,2201.0,2199.9,20.444]
[1773616232057,27.92460982,2201.0,2199.7,28.48368558]
[1773616232254,27.92460982,2201.0,2199.8,20.44]
[1773616232854,27.92460982,2201.0,2199.8,48.91866704]
[1773616233053,27.92460982,2201.0,2199.9,28.47866704]
[1773616233856,27.92460982,2201.0,2199.9,28.70588704]
[1773616234060,27.92460982,2201.0,2199.7,0.00501854]
[1773616234361,27.92025019,2200.8,2199.0,28.70597704]
[1773616234557,27.92025019,2200.8,2199.2,28.47866704]
[1773616234754,27.92025019,2200.8,2199.4,28.47866704]
[1773616234956,27.92025019,2200.8,2199.5,20.429]
[1773616235152,27.92025019,2200.8,2199.5,20.43418958]
[1773616235460,27.92025019,2200.8,2199.5,0.00518958]
[1773616235658,27.92025019,2200.6,2199.6,20.425]
[1773616235962,27.92025019,2200.6,2199.5,0.00518958]
[1773616236262,27.92025019,2200.6,2198.9,20.422]
[1773616236558,27.92025019,2200.4,2199.0,20.421]
[1773616236768,30.4,2200.5,2199.0,20.421]
[1773616236769,27.92025019,2200.2,2199.0,20.421]
[1773616236963,27.92025019,2200.2,2199.1,28.70596704]
[1773616237259,27.92025019,2200.2,2199.2,20.417]
[1773616237451,27.92025019,2200.2,2199.3,28.47866704]
[1773616237857,27.92025019,2200.2,2199.5,28.47866704]
[1773616238052,27.92025019,2200.2,2199.6,20.413]
[1773616238260,27.92025019,2200.2,2199.7,20.411]
[1773616238960,27.92025019,2200.2,2199.7,48.88966704]
[1773616239561,27.92025019,2200.6,2199.7,48.88966704]
[1773616239760,27.92460982,2201.0,2200.0,28.47866704]
[1773616239963,27.92460982,2201.0,2200.1,20.404]
[1773616240161,27.92460982,2201.0,2200.2,20.403]
[1773616241064,27.92460982,2201.0,2200.3,28.47866704]
[1773616241262,0.00435963,2201.0,2200.5,28.47866704]
[1773616241461,27.92025019,2201.3,2200.5,28.47866704]
[1773616241762,7.97125814,2202.9,2200.1,28.47866704]
[1773616241763,27.92025019,2201.6,2200.1,28.47866704]
[1773616241965,27.92025019,2201.6,2200.2,20.398]
[1773616242268,27.92025019,2201.6,2200.3,20.396]
[1773616242462,27.92536305,2201.6,2200.3,20.396]
[1773616242762,27.92536305,2201.6,2200.1,28.47866704]
[1773616242967,27.92536305,2201.6,2200.2,20.394]
[1773616243463,27.92025019,2201.4,2199.5,28.47866704]
[1773616243967,27.92025019,2201.2,2200.0,28.47866704]
[1773616244269,27.92025019,2201.2,2200.2,28.47866704]
[1773616244568,27.92025019,2201.2,2200.3,48.86666704]
[1773616244763,27.92025019,2201.2,2200.4,28.47866704]
[1773616245164,27.92025019,2201.5,2200.6,28.47866704]
[1773616245468,27.92025019,2201.5,2200.6,28.48257481]
[1773616245768,27.92025019,2201.5,2200.7,0.00119824]
[1773616246068,27.92025019,2201.5,2200.8,20.38]
[1773616246362,27.92025019,2201.5,2200.7,0.00119824]
[1773616246566,27.92025019,2201.5,2200.8,20.378]
[1773616248172,27.92025019,2201.5,2200.7,20.37119824]
[1773616248672,27.92025019,2201.5,2200.2,28.47866704]
[1773616248874,27.92025019,2201.3,2200.3,20.368]
[1773616249171,27.92025019,2201.5,2200.7,28.47866704]
[1773616249371,27.92025019,2201.5,2200.1,48.84366704]
[1773616249569,27.92025019,2201.3,2200.1,48.84752908]
[1773616249768,27.92025019,2201.3,2200.2,33.64111579]
[1773616249973,27.92025019,2201.3,2200.1,20.36886204]
[1773616249974,27.92025019,2201.3,2200.4,28.47866704]
[1773616250573,27.92025019,2201.3,2200.5,49.06782704]
[1773616251076,27.92025019,2201.3,2200.5,28.70582704]
[1773616251275,27.92025019,2201.3,2200.6,20.359]
[1773616251778,27.92025019,2201.3,2200.5,28.70582704]
[1773616251982,27.92025019,2201.3,2200.1,0.00386204]
[1773616252282,27.07001663,2201.1,2199.7,47.56329583]
[1773616252584,0.00511286,2201.6,2199.7,47.56329583]
[1773616252585,27.07001663,2200.9,2199.7,47.56329583]
[1773616252783,27.07001663,2200.7,2199.7,47.56329583]
[1773616253085,27.07001663,2200.7,2199.7,47.56667159]
[1773616253886,27.07001663,2200.7,2199.3,0.22728]
[1773616254282,26.31385045,2200.5,2199.3,20.351]
[1773616254481,26.31385045,2200.5,2199.0,5.36424737]
[1773616254482,26.31385045,2200.3,2198.9,27.90874086]
[1773616254682,26.31385045,2200.1,2198.9,27.90874086]
[1773616254982,26.31385045,2199.9,2198.9,27.91198281]
[1773616255288,26.31385045,2199.8,2199.0,27.90874086]
[1773616255884,26.31385045,2199.8,2199.1,20.348]
[1773616256378,26.31385045,2199.8,2198.9,27.91198281]
[1773616256583,26.31385045,2199.8,2199.1,20.346]
[1773616256782,26.31385045,2199.8,2198.9,27.91198281]
[1773616256983,26.31385045,2199.8,2199.0,20.345]
[1773616257984,26.31385045,2199.8,2199.1,20.343]
[1773616258586,26.31385045,2199.8,2198.9,27.91198281]
[1773616258889,26.31385045,2199.8,2198.9,0.00324195]
[1773616259281,26.31385045,2199.8,2198.4,27.90874086]
[1773616259689,26.31385045,2199.6,2198.4,27.90874086]
[1773616259887,26.31385045,2199.4,2198.4,27.90874086]
[1773616260288,26.31385045,2199.4,2198.5,20.338]
[1773616260486,26.31385045,2199.4,2198.4,27.91427471]
[1773616260691,26.31385045,2199.4,2198.5,20.337]
[1773616260985,26.31385045,2199.4,2198.6,27.90874086]
[1773616261389,26.31385045,2199.6,2198.6,27.90874086]
[1773616261890,0.00510617,2199.9,2199.0,27.90874086]
[1773616262090,0.00510617,2199.9,2199.2,27.90874086]
[1773616262291,0.00510617,2199.9,2199.4,27.90874086]
[1773616262590,26.31385045,2200.2,2199.4,27.90874086]
[1773616262786,26.31385045,2200.8,2199.6,27.90874086]
[1773616262991,26.31385045,2200.8,2199.7,20.329]
[1773616263287,26.31385045,2200.8,2199.0,27.90874086]
[1773616263590,26.31742389,2200.8,2198.9,20.328]
[1773616263790,26.31742389,2200.8,2198.9,48.23674086]
[1773616264292,30.87842389,2200.8,2198.7,20.325]
[1773616264483,30.87842389,2200.8,2198.6,27.90874086]
[1773616264688,30.87842389,2200.8,2198.4,27.91427471]
[1773616264891,26.31385045,2200.5,2198.4,27.91427471]
[1773616265088,26.31385045,2200.3,2198.4,27.91427471]
[1773616265289,26.31385045,2200.1,2198.4,27.91427471]
[1773616265489,26.31385045,2199.9,2198.4,27.91427471]
[1773616266294,26.31385045,2199.9,2198.4,0.00553385]
[1773616266694,26.31262371,2199.9,2198.4,0.00553385]
[1773616267096,26.31262371,2199.9,2197.6,5.36424737]
[1773616267097,30.87362371,2199.9,2197.5,27.90874086]
[1773616267893,26.31385045,2199.2,2197.5,27.90874086]
[1773616268094,26.31385045,2199.0,2197.5,27.91285933]
[1773616268799,26.31385045,2199.0,2197.5,0.00411847]
[1773616269398,26.31385045,2199.0,2197.5,27.91285933]
[1773616271896,26.31385045,2199.0,2197.7,27.90874086]
[1773616272799,26.31385045,2199.0,2197.9,27.90874086]
[1773616273000,26.31385045,2199.0,2198.0,20.277]
[1773616273200,26.31385045,2199.0,2198.0,20.276]
[1773616273498,26.31385045,2199.0,2197.8,28.13618086]
[1773616273699,26.31385045,2199.0,2197.9,27.90874086]
[1773616274201,26.31385045,2199.0,2197.6,27.90874086]
[1773616274596,26.31385045,2199.0,2197.8,27.90874086]
[1773616276497,26.31385045,2199.0,2197.9,20.255]
[1773616276694,26.31385045,2199.0,2197.9,20.254]
[1773616276900,26.31385045,2199.0,2197.8,20.253]
[1773616277302,26.31385045,2199.0,2197.7,28.13619086]
[1773616277502,26.31385045,2199.0,2197.8,27.90874086]
[1773616278000,26.31385045,2199.0,2197.5,0.00411847]
[1773616278697,26.31385045,2198.8,2197.5,0.00411847]
[1773616278900,26.31385045,2198.8,2196.9,27.90874086]
[1773616279105,30.87485045,2198.6,2196.6,27.90874086]
[1773616279304,30.87485045,2198.4,2196.3,27.90874086]
[1773616279903,30.87485045,2198.4,2196.3,27.91465357]
[1773616280808,2.42414727,2198.2,2196.3,27.91465357]
[1773616281002,26.31385045,2198.0,2196.3,27.91465357]
[1773616281402,26.31385045,2198.0,2196.9,27.90874086]
[1773616281800,26.31385045,2198.3,2197.3,27.90874086]
[1773616283303,25.01601162,2198.8,2197.5,26.95873088]
[1773616283502,25.01601162,2199.1,2197.7,26.95873088]
[1773616283808,25.01601162,2199.1,2197.9,26.95873088]
[1773616284005,25.01601162,2199.1,2198.0,26.95873088]
[1773616284400,0.0032982,2199.2,2198.2,26.95873088]
[1773616284600,25.01930982,2199.2,2198.2,26.95873088]
[1773616284803,25.01930982,2199.2,2198.2,47.17173088]
[1773616285014,25.01930982,2199.2,2198.2,26.95873088]
[1773616285603,0.0032982,2199.2,2198.2,26.95873088]
[1773616285804,0.0032982,2199.2,2198.4,26.95873088]
[1773616288210,25.01601162,2201.3,2198.9,2.42414727]
[1773616288411,25.01601162,2200.6,2199.1,26.95873088]
[1773616288612,25.01601162,2200.4,2199.1,26.95873088]
[1773616288814,25.01601162,2200.2,2199.1,26.95873088]
[1773616289516,25.02010492,2200.2,2199.1,26.95873088]
[1773616290315,25.02010492,2200.2,2199.2,26.95873088]
[1773616291912,25.02010492,2200.2,2199.3,26.95873088]
[1773616295016,7.10273772,2202.0,2199.1,20.044]
[1773616295017,25.01601162,2201.3,2199.5,26.95873088]
[1773616295218,25.01601162,2201.3,2200.1,26.95873088]
[1773616295411,25.01601162,2202.0,2200.3,26.95873088]
[1773616295709,14.39179467,2202.2,2200.2,25.24029124]
[1773616295710,25.01601162,2201.8,2200.5,26.95873088]
[1773616295911,7.959,2202.6,2200.7,26.95873088]
[1773616295912,25.01601162,2202.0,2200.7,26.95873088]
[1773616296109,25.02097988,2202.0,2200.7,26.96449704]
[1773616296306,25.02097988,2202.0,2200.8,20.071]
[1773616296612,25.02097988,2202.0,2200.9,47.03473088]
[1773616296817,25.02097988,2202.0,2200.7,26.96449704]
[1773616297116,25.01601162,2201.8,2200.7,26.96449704]
[1773616297609,27.44015889,2201.8,2200.7,0.00576616]
[1773616297809,25.01601162,2201.8,2200.7,26.96449704]
[1773616298118,25.01601162,2201.8,2200.7,0.00576616]
[1773616299315,25.01601162,2201.6,2200.7,0.00576616]
[1773616299515,25.01601162,2201.6,2200.7,26.96449704]
[1773616299714,25.01601162,2201.6,2200.7,0.00576616]
[1773616300316,25.01601162,2201.4,2200.7,0.00576616]
[1773616300614,25.01601162,2201.9,2200.7,26.96449704]
[1773616302713,25.01601162,2201.9,2200.7,0.00576616]
[1773616303220,25.01601162,2201.8,2200.7,0.00576616]
[1773616303519,25.01601162,2201.6,2200.7,0.00576616]
[1773616304010,0.00496826,2202.0,2200.8,26.95873088]
[1773616304216,0.00496826,2202.0,2200.8,27.18586088]
[1773616304808,0.00496826,2202.0,2201.0,26.95873088]
[1773616305618,39.25601162,2202.1,2200.9,20.15]
[1773616305619,25.01601162,2202.5,2201.2,26.95873088]
[1773616306119,25.01601162,2202.4,2201.2,26.95873088]
[1773616306616,0.00473495,2202.4,2201.2,26.95873088]
[1773616307215,0.00473495,2202.4,2201.6,26.95873088]
[1773616307415,0.61524861,2202.7,2201.7,27.18577088]
[1773616307918,39.27401162,2203.3,2201.7,27.18577088]
[1773616308215,25.01601162,2203.3,2201.7,27.18577088]
[1773616308515,0.01165586,2203.5,2202.4,26.95873088]
[1773616308718,0.01662253,2203.5,2202.4,26.96224655]
[1773616309210,0.01662253,2203.5,2202.6,26.95873088]
[1773616309622,25.03263415,2203.5,2202.6,26.95873088]
[1773616309819,14.28862253,2203.5,2202.6,26.95873088]
[1773616310014,25.01601162,2203.4,2202.4,26.96224655]
[1773616310621,25.01601162,2203.4,2202.4,0.00351567]
[1773616311221,25.01601162,2203.4,2202.4,26.96224655]
[1773616311222,25.01601162,2203.2,2202.4,26.96224655]
[1773616311721,25.01601162,2203.0,2202.1,26.95873088]
[1773616311918,25.01601162,2203.0,2201.6,26.73887164]
[1773616312422,26.69866577,2202.8,2201.6,26.73887164]
[1773616312625,26.69866577,2202.6,2201.6,26.73887164]
[1773616312824,26.69866577,2202.4,2201.6,26.74270798]
[1773616313025,40.79764049,2202.3,2201.6,26.74270798]
[1773616313221,26.51064049,2202.2,2201.6,0.00383634]
[1773616313426,26.51064049,2202.2,2201.4,24.99268676]
[1773616313720,14.291,2202.1,2201.4,24.99268676]
[1773616314125,40.80164049,2202.1,2201.4,24.99268676]
[1773616314326,40.80164049,2202.1,2201.4,24.99660775]
[1773616315222,26.51064049,2202.0,2201.1,24.99268676]
[1773616316021,26.51064049,2201.8,2201.1,24.99268676]
[1773616316226,14.307,2201.7,2201.1,24.99268676]
[1773616316425,14.307,2201.7,2201.1,24.99741333]
[1773616316823,14.307,2201.7,2200.9,24.99268676]
[1773616317325,40.81764049,2201.7,2200.9,24.99268676]
[1773616317728,26.51064049,2201.6,2200.9,24.9966325]
[1773616319127,14.307,2201.7,2199.8,24.99268676]
[1773616319128,26.51064049,2200.9,2199.8,24.99268676]
[1773616319429,26.51064049,2200.7,2199.8,24.99268676]
[1773616319622,26.51064049,2200.5,2199.8,24.99268676]
[1773616319826,28.93478776,2200.5,2199.0,24.99268676]
[1773616320029,26.51064049,2200.3,2199.0,24.99673948]
[1773616320426,40.85364049,2200.2,2199.0,24.99673948]
[1773616320627,14.345,2200.1,2199.0,24.99673948]
[1773616320828,40.85564049,2200.1,2199.0,24.99673948]
[1773616321227,0.00336591,2200.2,2199.0,24.99673948]
[1773616321535,14.354,2200.5,2199.2,24.99268676]
[1773616321833,26.51064049,2200.7,2199.4,24.99268676]
[1773616321834,40.86864049,2200.7,2199.4,24.99268676]
[1773616322230,40.86864049,2200.7,2199.6,24.99268676]
[1773616322629,40.87370562,2200.7,2199.6,24.99268676]
[1773616323133,26.51064049,2200.6,2199.6,24.99268676]
[1773616323331,26.51064049,2200.6,2199.1,24.99268676]
[1773616323833,26.51064049,2200.6,2199.0,0.00405272]
[1773616324536,26.51064049,2200.4,2199.0,0.00405272]
[1773616325638,22.335,2200.5,2198.2,24.99268676]
[1773616325639,26.51064049,2200.0,2198.2,24.99268676]
[1773616325839,26.51064049,2200.0,2197.7,24.99268676]
[1773616326040,26.51064049,2199.8,2197.9,24.99268676]
[1773616326335,11.17517284,2200.5,2197.9,24.99268676]
[1773616326336,26.51064049,2199.3,2197.9,24.99268676]
[1773616326536,26.51064049,2199.1,2197.9,24.99666685]
[1773616326734,26.51532383,2199.1,2197.9,24.99666685]
[1773616327035,26.51532383,2199.1,2197.9,0.00398009]
[1773616327541,26.51064049,2198.9,2197.9,0.00398009]
[1773616327742,26.51064049,2198.7,2197.9,0.00398009]
[1773616327943,26.51064049,2198.7,2197.9,24.99666685]
[1773616328139,14.417,2198.6,2197.9,24.99666685]
[1773616329441,40.94064049,2198.6,2197.9,24.99666685]
[1773616329842,26.51064049,2198.5,2197.2,24.99268676]
[1773616330640,26.51064049,2198.5,2196.9,24.99268676]
[1773616330841,26.51064049,2198.5,2196.9,24.99634326]
[1773616333541,0.22549521,2198.7,2196.9,24.99634326]
[1773616333542,26.51064049,2198.3,2196.9,24.99634326]
[1773616333945,40.98964049,2198.3,2197.1,24.99268676]
[1773616334540,26.51064049,2198.2,2197.1,24.99268676]
[1773616335646,41.00664049,2198.2,2197.1,24.99268676]
[1773616335941,14.496,2198.2,2197.1,24.99268676]
[1773616336147,30.4,2199.0,2196.9,0.2311865]
[1773616336148,41.01264049,2198.8,2197.5,24.99268676]
[1773616336547,26.51064049,2198.7,2197.5,24.99268676]
[1773616339946,26.51064049,2198.7,2197.2,24.99268676]
[1773616341041,31.07164049,2198.7,2196.9,24.99634326]
[1773616341240,26.51064049,2198.5,2196.9,24.99634326]
[1773616341443,41.06964049,2198.4,2196.9,24.99634326]
[1773616341644,26.51064049,2198.3,2196.9,24.99634326]
[1773616343049,40.28392038,2198.2,2196.9,24.99634326]
[1773616343251,25.70792038,2198.2,2197.1,25.97743242]
[1773616343450,40.28692038,2198.2,2197.1,25.97743242]
[1773616343952,25.70792038,2198.1,2197.1,25.97743242]
[1773616345546,25.70792038,2198.1,2196.9,25.98108892]
[1773616346355,40.31592038,2198.0,2196.9,25.98108892]
[1773616346649,25.70792038,2198.0,2196.9,25.98108892]
[1773616346847,14.613,2197.9,2196.9,25.98108892]
[1773616347057,14.614,2198.2,2197.1,25.97743242]
[1773616347355,25.70792038,2198.0,2197.1,25.97743242]
[1773616347658,40.32692038,2198.0,2197.1,25.97743242]
[1773616347955,25.70792038,2197.9,2197.1,25.97743242]
[1773616349349,25.70792038,2197.9,2196.8,0.61942627]
[1773616349547,25.70792038,2197.9,2196.4,25.97743242]
[1773616349946,25.70792038,2197.7,2196.4,25.97743242]
[1773616350459,30.4,2197.8,2196.4,25.97743242]
[1773616350460,25.70792038,2197.5,2196.4,25.97743242]
[1773616350653,25.7119053,2197.5,2196.4,25.98118889]
[1773616351753,0.00398492,2197.5,2196.4,25.98118889]
[1773616351949,0.00398492,2197.5,2196.6,25.97743242]
[1773616352153,0.00398492,2197.5,2196.8,25.97743242]
[1773616353457,25.70792038,2198.1,2197.0,25.97743242]
[1773616353659,25.70792038,2198.3,2197.2,26.20493242]
[1773616353853,40.38492038,2198.6,2197.2,26.20493242]
[1773616354059,40.38492038,2198.6,2197.4,25.97743242]
[1773616354254,25.70792038,2198.5,2197.4,25.97743242]
[1773616355254,0.00490073,2198.6,2197.6,25.97743242]
[1773616355461,25.71282111,2198.6,2197.8,25.97743242]
[1773616356759,25.71282111,2198.6,2197.6,25.97743242]
[1773616356958,25.70792038,2198.4,2197.4,25.97743242]
[1773616357163,25.70792038,2198.4,2197.5,5.00252993]
[1773616357359,25.70792038,2198.4,2197.6,5.00252993]
[1773616357552,25.70792038,2198.4,2197.4,25.97743242]
[1773616357754,25.70792038,2198.4,2197.5,30.98064738]
[1773616358053,25.70792038,2198.4,2197.6,5.00321496]
[1773616358252,25.70792038,2198.4,2197.2,25.97743242]
[1773616358461,25.70792038,2198.4,2197.3,5.00681915]
[1773616358662,25.70792038,2198.2,2197.2,25.97743242]
[1773616358965,25.70792038,2198.2,2197.3,5.00678524]
[1773616359166,25.70792038,2198.2,2197.2,25.97743242]
[1773616359358,25.70792038,2198.2,2197.3,5.00773917]
[1773616359558,25.70792038,2198.2,2197.0,3.56227381]
[1773616359754,25.70792038,2198.2,2197.1,5.00785479]
[1773616359964,14.735,2198.1,2197.2,5.00785479]
[1773616360158,25.70792038,2198.0,2197.0,25.97743242]
[1773616360359,25.70792038,2198.0,2197.1,5.0081832]
[1773616360663,25.70792038,2198.0,2196.7,29.53970623]
[1773616360866,25.70792038,2198.0,2196.8,30.98664886]
[1773616361055,25.70792038,2198.0,2196.9,5.00921644]
[1773616361259,25.70792038,2198.0,2196.6,25.97743242]
[1773616361459,25.70792038,2198.0,2196.8,25.97743242]
[1773616361856,25.70792038,2197.8,2196.6,25.97743242]
[1773616362060,25.70792038,2197.6,2196.7,5.01020118]
[1773616362261,25.70792038,2197.6,2196.6,25.97743242]
[1773616362262,25.70792038,2197.6,2196.8,5.01020118]
[1773616362560,25.70792038,2197.6,2196.4,0.00375647]
[1773616364957,25.70792038,2197.3,2196.0,25.97743242]
[1773616365162,25.70792038,2197.1,2196.0,25.97743242]
[1773616365854,25.70792038,2197.1,2196.0,25.9812815]
[1773616369164,40.53692038,2197.1,2196.0,25.9812815]
[1773616369569,25.70792038,2197.0,2196.0,25.9812815]
[1773616369865,25.71181713,2197.0,2196.0,25.9812815]
[1773616371266,0.00389675,2197.0,2196.0,25.9812815]
[1773616372265,23.4533868,2197.0,2196.0,25.9812815]
[1773616373067,0.00389675,2197.0,2196.0,25.9812815]
[1773616373274,0.00389675,2197.0,2196.2,24.6087052]
[1773616373473,0.00389675,2197.0,2196.4,24.6087052]
[1773616374765,23.41381595,2197.0,2196.3,24.6087052]
[1773616374965,0.00389675,2197.0,2196.3,24.6087052]
[1773616375566,23.41381595,2197.0,2196.3,24.6087052]
[1773616376870,23.41381595,2197.0,2196.1,24.6087052]
[1773616377077,23.4099192,2196.8,2196.0,0.00384908]
[1773616377375,14.889,2196.9,2196.0,24.61255428]
[1773616377976,14.889,2196.9,2196.2,24.6087052]
[1773616378474,23.4099192,2196.8,2196.2,24.6087052]
[1773616379271,23.4099192,2196.8,2196.0,24.61255428]
[1773616380968,14.913,2196.7,2196.0,24.61255428]
[1773616381373,0.00389675,2197.0,2196.0,24.61255428]
[1773616381374,23.41381595,2197.0,2196.0,24.61255428]
[1773616381572,38.33081595,2197.0,2196.0,24.61255428]
[1773616381772,23.4099192,2196.9,2196.0,24.61255428]
[1773616382168,23.4099192,2196.9,2196.0,0.00384908]
[1773616382377,23.4099192,2196.9,2195.4,24.6087052]
[1773616382575,23.4099192,2196.9,2195.2,3.56227381]
[1773616382576,27.9709192,2196.9,2195.2,24.6087052]
[1773616382780,27.9709192,2196.9,2194.5,24.6087052]
[1773616382781,23.4099192,2196.2,2194.5,24.6087052]
[1773616382975,2.42357307,2196.3,2194.1,24.6087052]
[1773616382976,27.9709192,2195.8,2194.1,24.6087052]
[1773616383283,27.9709192,2195.8,2194.1,24.6144936]
[1773616383284,23.4099192,2195.6,2194.1,24.6144936]
[1773616383471,23.4099192,2195.4,2194.1,24.6144936]
[1773616383672,23.41511065,2195.4,2194.1,24.6144936]
[1773616384478,38.3439192,2195.3,2194.1,24.6144936]
[1773616384978,38.3479192,2195.3,2194.1,24.6144936]
[1773616385776,23.4099192,2195.2,2194.1,24.6144936]
[1773616386576,23.4099192,2195.2,2194.2,24.6087052]
[1773616387072,23.4099192,2195.2,2194.1,0.0057884]
[1773616387272,23.4099192,2195.0,2193.2,24.6087052]
[1773616388082,23.4099192,2194.8,2193.2,24.6087052]
[1773616388278,23.4099192,2194.4,2192.9,24.6087052]
[1773616388474,23.4099192,2194.2,2192.9,24.6087052]
[1773616388676,23.4099192,2194.0,2192.9,24.6087052]
[1773616389272,23.4099192,2193.8,2192.9,0.00571118]
[1773616389475,23.4099192,2193.8,2192.4,24.6087052]
[1773616390080,23.4099192,2193.6,2191.9,24.6087052]
[1773616390277,23.4099192,2193.4,2191.9,24.6087052]
[1773616390478,23.41335595,2193.4,2191.9,24.61320386]
[1773616390678,23.4099192,2193.2,2191.6,24.6087052]
[1773616391180,23.4099192,2193.0,2191.6,24.6087052]
[1773616391781,23.4099192,2193.0,2191.6,24.61217837]
[1773616392284,23.4099192,2192.8,2191.6,0.00347317]
[1773616392675,23.4099192,2192.8,2191.5,0.61942627]
[1773616393279,23.4099192,2192.6,2191.5,0.61942627]
[1773616393479,23.4099192,2192.6,2190.9,24.6087052]
[1773616393681,23.4099192,2192.2,2190.9,0.00389796]
[1773616393886,23.4099192,2192.0,2190.5,24.6087052]
[1773616394081,14.998,2191.9,2190.5,24.6087052]
[1773616394277,30.4,2192.1,2190.7,24.6087052]
[1773616394577,23.4099192,2191.9,2190.7,24.6087052]
[1773616394778,53.8099192,2192.1,2190.7,24.61256691]
[1773616394981,23.4099192,2192.1,2190.7,24.61256691]
[1773616395377,23.4099192,2192.1,2190.9,24.6087052]
[1773616396979,23.4099192,2192.2,2190.9,24.6087052]
[1773616397186,15.022,2192.1,2190.9,24.6087052]
[1773616397386,38.4319192,2192.1,2190.9,24.6087052]
[1773616397690,23.4099192,2192.0,2190.9,24.6087052]
[1773616398388,23.4099192,2192.0,2190.7,24.61256691]
[1773616399384,23.4099192,2192.0,2190.8,24.6087052]
[1773616400294,23.4099192,2192.0,2190.8,24.8368652]
[1773616400693,23.4099192,2192.0,2190.8,24.6087052]
[1773616401695,23.4099192,2192.2,2190.8,24.6087052]
[1773616401989,23.4099192,2192.2,2191.0,24.6087052]
[1773616403002,23.4099192,2192.2,2191.2,23.00565008]
[1773616403896,23.7907438,2192.6,2191.2,23.00565008]
[1773616404098,38.8737438,2192.6,2191.2,23.00565008]
[1773616404395,38.8737438,2192.6,2191.1,20.381]
[1773616404396,38.8737438,2192.6,2191.4,23.00565008]
[1773616404592,23.7907438,2192.5,2191.4,23.00565008]
[1773616405295,23.7907438,2192.7,2191.4,23.00565008]
[1773616405896,2.66689022,2193.4,2191.8,23.00565008]
[1773616405897,38.8887438,2193.3,2191.8,23.00565008]
[1773616406094,23.7907438,2193.2,2192.0,23.00565008]